Cogmind - Beta 16.1 @@@ ROGUE MODE // 2026.01.19 @ 21:21:31 Player: cptwinky Result: Escaped! Performance ------------- Evolutions (9) 4500 Regions Visited (28) 5600 Robots Destroyed (324) 1620 Value Destroyed (17006) 17006 Prototype IDs (53) 1060 Alien Tech Used (0) 0 Bonus (19742) 19742 TOTAL SCORE: 49528 Bonus ------- High Alert Combat Kills 4118 Follower Combat Kills 6036 Hunted by Unchained 500 Entered Garrisons 1200 Used RIF Installer 3000 Network Hubs Disabled 400 Aligned with FarCom 300 Built Enhanced Grunts 300 A7 Reached Mainframe 300 Met R17 at Cetus 500 Met R17 at Research 2000 Win 3000 Friendly Fire -1912 Cogmind --------- Core Integrity 1374/1600 Matter 250/300 Energy 760/780 System Corruption 1% Temperature Cool (13) Movement Walking (115) Location To Epsilon Eridani Parts ------- > --- POWER (3) -------- Light Quantum Reactor Light Quantum Reactor > --- PROPULSION (7) --- Biometal Leg Enhanced Biometal Leg Centrium Leg Centrium Leg Centrium Leg Centrium Leg High-density Centrium Leg > --- UTILITY (11) ----- Advanced Heat Sink Advanced Heat Sink High-capacity Storage Unit Advanced Energy Well Experimental Core Analyzer Advanced Weapon Cycler Advanced Transmission Jammer Medium Regenerative Plating Relay Coupler [Grunt] (16) Relay Coupler [Proto] (16) Hacking Drone Bay (1/1) > --- WEAPON (4) ------- Enhanced Nova Cannon Firepult Advanced Remote Datajack > --- INVENTORY (20) --- Centrium Leg Centrium Leg High-density Centrium Leg High-density Centrium Leg High-density Centrium Leg Matter Compressor (220) Relay Coupler [NC] (33) Relay Coupler [Proto] (16) Advanced Component Analysis Suite Improved Trap Extractor (0/6) Improved Matter Neutralizer Enhanced Nova Cannon Helical Railgun Peak State ------------ > --- POWER ------------ Quantum Reactor Light Quantum Reactor Light Quantum Reactor > --- PROPULSION ------- Biometal Leg Enhanced Biometal Leg Centrium Leg Centrium Leg Centrium Leg Centrium Leg High-density Centrium Leg > --- UTILITY ---------- High-capacity Storage Unit Experimental Targeting Computer Experimental Core Analyzer Advanced Weapon Cycler Advanced Transmission Jammer Advanced Reaction Control System Advanced Powered Armor Medium Regenerative Plating Advanced Shield Generator Relay Coupler [NC] Relay Coupler [Heavy] > --- WEAPON ----------- Enhanced Nova Cannon Enhanced Nova Cannon Advanced KE Penetrator Helical Railgun > --- INVENTORY -------- Centrium Leg High-density Centrium Leg High-density Centrium Leg High-density Centrium Leg Advanced Energy Well Matter Compressor Relay Coupler [NC] Relay Coupler [Proto] Relay Coupler [Proto] Advanced Component Analysis Suite Improved Trap Extractor Hacking Drone Bay Improved Matter Neutralizer Firepult Long-range Missile Launcher Advanced Remote Datajack [Rating: 205] Favorites ----------- Power Quantum Reactor Engine Improved Deuterium Engine Power Core Enhanced Nuclear Core Reactor Quantum Reactor Propulsion Carbon-fiber Leg Treads Light Treads Leg Carbon-fiber Leg Utility Large Storage Unit Device Advanced Cooling System Storage Large Storage Unit Processor Core Analyzer Hackware Relay Coupler [NC] Protection Layered Medium Armor Plating Weapon Advanced KE Penetrator Energy Gun Beam Rifle Energy Cannon Enhanced Nova Cannon Ballistic Gun Advanced KE Penetrator Launcher Advanced EMP Blaster Special Weapon Remote Datajack Slashing Weapon Scythe Piercing Weapon Heavy Pick Special Melee Weapon Advanced Datajack Build | -11 -10 -10 -10 -9 -8 -8 -8 -8 -7 -7 -7 -7 -7 -7 -6 -6 -6 -6 -6 -6 -5 -5 -4 -4 -3 -3 -2 -1 ------- Run | Yrd Mat Min Exi Min Mat Gar Mat Gar Fac Gar Fac Low Low Zio Pro Fac Ext Cet Arc Hub Fac Gar Fac Gar Res Gar Res Acc Slots Evolved 18 | . . . . . 4 . . . 2 . . . . . . 2 . . . . 2 . 2 . 2 . 2 2 Power 2 | . . . . . . . . . . . . . . . . 1 . . . . . . . . . . 1 . Propulsion 5 | . . . . . 1 . . . 1 . . . . . . 1 . . . . . . 1 . . . 1 . Utility 9 | . . . . . 2 . . . 1 . . . . . . . . . . . 2 . 1 . 2 . . 1 Weapon 2 | . . . . . 1 . . . . . . . . . . . . . . . . . . . . . . 1 Parts Attached 202 | 6 5 1 4 2 6 8 21 13 4 9 16 3 . 1 2 9 3 7 2 8 4 11 3 2 12 5 9 26 Power 24 | 1 . . 1 . . 2 3 . 1 1 3 . . . . 1 . 2 . . . 2 . . 1 . 2 4 Engine 4 | 1 . . . . . . . . . . 2 . . . . 1 . . . . . . . . . . . . Core 10 | . . . 1 . . 2 3 . 1 1 1 . . . . . . 1 . . . . . . . . . . Reactor 10 | . . . . . . . . . . . . . . . . . . 1 . . . 2 . . 1 . 2 4 Propulsion 51 | 2 . 1 . 2 1 1 2 5 1 1 4 1 . . . 3 . . . 5 . 6 1 . 1 3 4 7 Treads 3 | 2 . 1 . . . . . . . . . . . . . . . . . . . . . . . . . . Leg 48 | . . . . 2 1 1 2 5 1 1 4 1 . . . 3 . . . 5 . 6 1 . 1 3 4 7 Wheel . | . . . . . . . . . . . . . . . . . . . . . . . . . . . . . Hover . | . . . . . . . . . . . . . . . . . . . . . . . . . . . . . Flight . | . . . . . . . . . . . . . . . . . . . . . . . . . . . . . Utility 73 | 1 2 . 1 . 3 2 6 6 2 3 4 2 . 1 1 2 . 3 1 2 4 2 2 2 6 1 1 13 Device 30 | . 1 . 1 . 1 2 3 1 1 1 1 1 . 1 . . . 1 1 . 4 1 1 2 2 . . 4 Storage 5 | 1 1 . . . . . 1 . . . . . . . . . . . . . . . . . 1 . . 1 Processor 6 | . . . . . . . . 2 . . 1 . . . . . . . . 2 . . . . . . 1 . Hackware 15 | . . . . . . . . . . 1 2 . . . . 1 . . . . . . 1 . 2 1 . 7 Protection 17 | . . . . . 2 . 2 3 1 1 . 1 . . 1 1 . 2 . . . 1 . . 1 . . 1 Artifact . | . . . . . . . . . . . . . . . . . . . . . . . . . . . . . Weapon 54 | 2 3 . 2 . 2 3 10 2 . 4 5 . . . 1 3 3 2 1 1 . 1 . . 4 1 2 2 Energy Gun 13 | . 3 . . . . . 5 1 . 2 2 . . . . . . . . . . . . . . . . . Energy Cannon 4 | . . . . . . . . . . . . . . . . . . . . . . . . . 1 . 1 2 Ballistic Gun 25 | 2 . . 2 . 1 1 2 . . . 3 . . . 1 3 2 2 1 1 . . . . 2 1 1 . Ballistic Cannon . | . . . . . . . . . . . . . . . . . . . . . . . . . . . . . Launcher 6 | . . . . . 1 1 2 . . 1 . . . . . . 1 . . . . . . . . . . . Special Weapon 3 | . . . . . . . . 1 . 1 . . . . . . . . . . . . . . 1 . . . Impact Weapon . | . . . . . . . . . . . . . . . . . . . . . . . . . . . . . Slashing Weapon 1 | . . . . . . 1 . . . . . . . . . . . . . . . . . . . . . . Piercing Weapon 1 | . . . . . . . 1 . . . . . . . . . . . . . . . . . . . . . Special Melee Weapon 1 | . . . . . . . . . . . . . . . . . . . . . . 1 . . . . . . Unidentified Prototypes 12 | . 1 . . . . . 1 . . . 1 . . 1 . 2 . 2 . 2 . . . . . . . 2 Corrupted Parts 1 | . . . . . . . . . . . . . . . . . . . 1 . . . . . . . . . System Corruption 3 | . . . . . . . . . . . . . . . . . . . 3 . . . . . . . . . Parts Lost 28 | . . . . . . 1 2 2 . 2 1 . . . . 1 2 1 . 1 . . . . . . 2 13 Power 5 | . . . . . . . . . . . . . . . . . . . . . . . . . . . 1 4 Propulsion 3 | . . . . . . . 1 1 . . . . . . . . . . . 1 . . . . . . . . Utility 13 | . . . . . . 1 1 1 . 1 . . . . . . . 1 . . . . . . . . 1 7 Weapon 7 | . . . . . . . . . . 1 1 . . . . 1 2 . . . . . . . . . . 2 Highest Loss Streak 5 | . . . . . . 1 1 2 . 1 1 . . . . 1 1 1 . 1 . . . . . . 1 5 To Critical Strikes . | . . . . . . . . . . . . . . . . . . . . . . . . . . . . . Average Backups 14 | 1 8 13 11 11 12 13 13 13 13 13 13 14 14 14 13 13 13 13 14 13 14 13 14 13 14 18 18 18 Power . | . 1 1 . 1 . . 1 1 1 1 1 1 1 1 1 . 1 1 1 1 1 . 1 1 1 1 . . Propulsion 1 | . 2 4 4 4 2 2 3 2 2 2 1 2 3 2 2 . 1 . . . . . . . . 1 1 4 Utility 5 | . 1 1 1 1 1 2 2 3 3 3 3 3 3 3 3 5 6 6 6 6 6 6 7 7 7 10 11 10 Weapon 4 | . 3 6 4 4 7 7 6 6 6 5 5 5 5 5 5 4 3 3 4 4 4 3 4 3 3 4 3 2 Tool/Special . | . . . . . . . . . . . . . . . . . . . . . . . . . . . . . Unused Backups 42 | . 2 2 . 1 2 . 5 1 . 1 1 1 . 1 2 3 . 4 . . . 1 . . 1 3 . 11 Power 7 | . . 1 . . 1 . 1 . . . . . . . 1 1 . 1 . . . . . . . 1 . . Propulsion 8 | . 1 . . . . . . 1 . . . . . 1 . . . . . . . . . . . . . 5 Utility 17 | . . . . 1 . . 1 . . 1 . 1 . . 1 1 . 3 . . . 1 . . . 1 . 6 Weapon 9 | . 1 1 . . 1 . 3 . . . 1 . . . . 1 . . . . . . . . 1 . . . Tool/Special 1 | . . . . . . . . . . . . . . . . . . . . . . . . . . 1 . . Average Slot Usage (%) 98 | . 85 100 100 100 95 99 100 99 99 99 99 98 100 100 100 99 99 99 99 98 99 100 99 99 99 100 97 95 Engine 2 | . 14 14 1 . . . . . . . 6 5 . . . 5 6 4 . . . . . . . . . . Core 4 | . . . 12 14 9 9 9 9 7 7 . 1 7 7 7 6 6 6 6 6 5 . . . . . . . Reactor 3 | . . . . . . . . . . . . . . . . . . 1 6 6 5 10 10 10 9 9 11 8 Treads 1 | . 28 28 28 20 . . . . . . . . . . . . . . . . . . . . . . . . Leg 27 | . . . . 7 27 27 27 26 30 30 30 30 30 30 30 33 33 33 33 32 29 29 30 31 28 28 29 27 Device 12 | . . 14 14 14 15 16 17 9 13 14 8 7 7 7 7 6 6 6 6 6 16 17 17 19 21 25 19 16 Storage 7 | . 14 14 14 14 9 9 9 9 7 7 6 7 7 7 7 6 6 6 6 6 5 5 5 5 4 4 4 4 Processor 5 | . . . . . . . . 8 7 7 7 7 7 7 7 6 6 6 6 11 11 11 10 10 9 9 8 7 Hackware 1 | . . . . . . . . . . . 5 4 . . . . . . . . . . 2 . 3 1 4 8 Protection 8 | . . . . . 6 10 9 9 7 7 7 8 15 15 15 12 12 12 12 7 5 5 5 5 6 4 5 6 Energy Gun 4 | . . 28 16 . . . 12 23 23 21 10 . . . . . . . . . . . . . . . . . Ballistic Gun 15 | . 27 . 11 28 26 26 13 . . . 10 22 22 23 23 19 18 19 19 19 17 16 14 14 12 10 11 10 Peak Build Rating 205 | 7 13 14 15 17 23 27 33 41 44 47 55 60 60 63 60 73 78 90 94 96 108 124 141 139 159 164 184 205 Average Rating 75 | 5 7 13 14 15 21 24 29 37 42 44 51 54 59 59 58 68 73 81 92 94 107 110 135 137 146 161 174 189 On Entrance 68 | . 7 13 13 15 16 22 25 30 38 43 45 54 59 59 59 59 73 74 90 93 96 108 124 135 138 159 156 175 Avg Prop Armor Cover (%) 13 | . . . . 7 . . . . . . . . . . . . . . 17 . . . . . . . . . Naked Turns . | . . . . . . . . . . . . . . . . . . . . . . . . . . . . . Heaviest Build 161 | 12 32 30 32 30 38 39 44 44 49 52 55 53 55 51 53 61 62 77 79 78 84 94 97 97 125 125 154 161 Greatest Support 210 | 40 40 40 40 40 39 39 39 48 60 60 68 70 70 70 70 95 95 95 95 100 95 130 155 155 160 165 201 210 Greatest Overweight (x) 25 | . . . . 1 . . 1 1 . . . . . . . . . . 25 . . . . . . . . . Average Overweight (x) . | . . . . . . . . . . . . . . . . . . . 17 . . . . . . . . . Largest Inventory Capacity 20 | 8 15 15 15 15 15 15 15 15 15 15 15 15 15 15 15 15 15 15 15 15 15 15 15 15 20 20 20 20 Average Capacity 15 | 7 11 15 15 15 15 15 15 15 15 15 14 15 15 15 15 15 15 15 15 15 15 15 15 15 16 20 20 20 Most Carried 20 | 5 15 15 15 15 15 15 15 15 15 15 15 15 15 15 15 15 15 15 15 15 15 15 15 15 20 20 20 20 Average Carried 15 | 2 9 14 14 14 13 14 14 14 14 14 14 14 15 15 14 14 14 14 15 14 15 14 14 14 15 19 19 19 Final Capacity 20 | 8 15 15 15 15 15 15 15 15 15 15 15 15 15 15 15 15 15 15 15 15 15 15 15 15 20 20 20 20 Final Carried 20 | 5 14 15 15 14 15 15 15 15 15 15 15 15 15 15 15 15 15 15 15 15 15 15 15 15 20 20 20 13 Class Distribution -------------------- 24% | Scavenger-Skirmisher 19% | Scavenger-Gunner 17% | Scavenger-Tank 10% | Commander-Tank 8% | Mutant 4% | Bothacker-Gunner 3% | Botlord-Tank Dominant Class ---------------- Mutant | -10/Materials Mutant | -10/Mines Mutant | -10/Exiles Mutant | -9/Mines Scavenger-Skirmisher | -8/Materials Scavenger-Skirmisher | -8/Garrison Scavenger-Skirmisher | -8/Materials Scavenger-Skirmisher | -8/Garrison Scavenger-Tank | -7/Factory Scavenger-Skirmisher | -7/Garrison Scavenger-Skirmisher | -7/Factory Scavenger-Gunner | -7/Lower Caves Scavenger-Tank | -7/Lower Caves Scavenger-Tank | -7/Zion Scavenger-Tank | -6/Proximity Caves Scavenger-Tank | -6/Factory Commander-Tank | -6/Extension Commander-Tank | -6/Cetus Commander-Tank | -6/Archives Scavenger-Gunner | -6/Hub_04(d) Scavenger-Gunner | -5/Factory Scavenger-Gunner | -5/Garrison Scavenger-Gunner | -4/Factory Scavenger-Gunner | -4/Garrison Scavenger-Gunner | -3/Research Commander-Gunner | -3/Garrison Bothacker-Gunner | -2/Research Botlord-Tank | -1/Access Resources | -11 -10 -10 -10 -9 -8 -8 -8 -8 -7 -7 -7 -7 -7 -7 -6 -6 -6 -6 -6 -6 -5 -5 -4 -4 -3 -3 -2 -1 ----------- Run | Yrd Mat Min Exi Min Mat Gar Mat Gar Fac Gar Fac Low Low Zio Pro Fac Ext Cet Arc Hub Fac Gar Fac Gar Res Gar Res Acc Matter Collected 11754 | 266 48 77 40 10 181 501 941 345 . 356 463 500 50 . 441 616 860 305 65 323 28 721 500 735 673 45 872 1792 Remotely . | . . . . . . . . . . . . . . . . . . . . . . . . . . . . . Salvage Created 14845 | 25 135 255 . . 181 540 1342 673 . 894 321 514 53 . 287 556 1276 280 63 431 28 1184 487 937 210 45 1637 2491 Parts 647 | 3 14 19 . . 17 31 53 36 . 31 16 27 4 . 13 29 49 20 8 18 3 50 20 46 16 . 44 80 Haulers Intercepted 8 | . . . . . . . 4 . . . 1 . . . . . . . . 1 . . . . . . 1 1 Recyclers Shooed 3 | . . . . . . . . . . . 1 . . . . 1 . . . . . . . . . . . 1 Parts Field Recycled . | . . . . . . . . . . . . . . . . . . . . . . . . . . . . . Retrieved Matter . | . . . . . . . . . . . . . . . . . . . . . . . . . . . . . Parts Self-Destructed 35 | . . . . . . . . . . . . 18 2 . 15 . . . . . . . . . . . . . Prevented 2 | . . . . . . . . . . . . . . . 2 . . . . . . . . . . . . . Parts Restored . | . . . . . . . . . . . . . . . . . . . . . . . . . . . . . Kills | -11 -10 -10 -10 -9 -8 -8 -8 -8 -7 -7 -7 -7 -7 -7 -6 -6 -6 -6 -6 -6 -5 -5 -4 -4 -3 -3 -2 -1 ------- Run | Yrd Mat Min Exi Min Mat Gar Mat Gar Fac Gar Fac Low Low Zio Pro Fac Ext Cet Arc Hub Fac Gar Fac Gar Res Gar Res Acc Combat Hostiles Destroyed 273 | . 5 9 . . 5 22 20 14 . 19 7 8 4 . 5 10 22 3 . 5 . 21 9 16 6 . 26 37 Guns 180 | . 5 8 . . 5 9 18 13 . 16 5 6 . . 2 10 19 3 . 5 . 17 7 13 2 . 7 10 Cannons 6 | . . . . . . . . . . . . . . . . . . . . . . . . . . . . 6 AOE 69 | . . 1 . . . 13 2 1 . 1 2 2 4 . 3 . 3 . . . . 4 2 3 4 . 14 10 Classes Destroyed 21 | 1 2 . . . 1 1 5 2 . . . 2 . . 1 . 2 . 1 . . . 1 1 . . 1 . Worker 14 | . . . . . . . 3 . . . . . . . . . 2 . . . . . . . . . 7 2 Builder 10 | . . . . . . . 2 . . . 1 . . . . . . . . 1 . . 1 . . . 3 2 Tunneler 2 | 1 . . . . 1 . . . . . . . . . . . . . . . . . . . . . . . Hauler 8 | . . . . . . . 4 . . . 1 . . . . . . . . 1 . . . . . . 1 1 Recycler 3 | . . . . . . . 1 . . . . . . . . . . . . . . . . . . . . 2 Minesweeper 1 | . . . . . . . . . . . . . . . 1 . . . . . . . . . . . . . Mechanic 2 | . . . . . . . . . . . . 1 . . . . 1 . . . . . . . . . . . Operator 3 | . . . . . . . . . . . . . . . . . . . 2 1 . . . . . . . . Watcher 5 | . . . . . . . . . . . . . . . . . 1 1 . 1 1 1 . . . . . . Swarmer 68 | . 3 6 . . 3 4 3 1 . 6 2 2 4 . . . 3 . . . . 4 . 4 4 . 5 14 Saboteur 1 | . . . . . . . . . . . . . . . . . . . . . . . . . . . 1 . Grunt 104 | . 2 3 . . . 16 11 3 . 4 2 4 . . 4 5 9 . . 3 . 10 1 8 . . 12 7 Brawler 7 | . . . . . . . 1 . . . . 2 . . 1 1 . . . . . . 1 1 . . . . Duelist 8 | . . . . . . 1 . 1 . . . . . . . . . . . . . 1 . 1 . . 2 2 Sentry 41 | . . . . . 2 1 5 6 . 6 1 . . . . 2 6 . . . . 3 1 1 1 . 1 5 Specialist 1 | . . . . . . . . . . . . . . . . . . . . . . . . 1 . . . . Hunter 15 | . . . . . . . . 1 . 2 . . . . . . 1 . . . . 3 . . 1 . 3 4 Programmer 19 | . . . . . . . . 2 . 1 2 . . . . 2 . . . 1 . . 4 . . . 3 4 Behemoth 2 | . . . . . . . . . . . . . . . . . 1 . . . . . . . . . . 1 Cetus Guard 3 | . . . . . . . . . . . . . . . . . . 3 . . . . . . . . . . Samaritan 1 | . . . . . . . . . . . . 1 . . . . . . . . . . . . . . . . Assembled 2 | . . . . . . . . . . . . . . . . . . . . . . . 2 . . . . . Thug 3 | . . . . . . . . . . . . . . . . . 1 . . 1 . . 1 . . . . . Savage 1 | . . . . . . . . . . . . . . . . . 1 . . . . . . . . . . . Guerrilla 1 | . . . . . . . . . . . . 1 . . . . . . . . . . . . . . . . Commander 1 | . . . . . . . . . . . . 1 . . . . . . . . . . . . . . . . Best Kill Streak 17 | 1 3 6 . . 3 6 7 2 . 3 3 3 4 . 3 3 5 2 2 3 1 4 3 5 4 . 17 8 Combat Bots Only 13 | . 3 6 . . 3 6 6 2 . 3 3 3 4 . 3 3 5 2 . 2 . 4 3 5 4 . 13 6 Max Kills in Single Turn 6 | 1 1 2 . . 1 2 2 1 . 1 2 2 4 . 2 2 3 1 1 2 1 4 4 3 4 . 6 3 Gunslinging 1 | . . 1 . . . . 1 . . . . 1 . . . 1 . . . . . 1 . . . . 1 . Exploded 5 | . . 1 . . . 2 1 1 . 1 2 2 4 . 2 . 3 . . . . 4 2 3 4 . 5 3 Melee . | . . . . . . . . . . . . . . . . . . . . . . . . . . . . . Uniques/NPCs Destroyed 1 | . . . . . . . . . . . . . . . . . . 1 . . . . . . . . . . A7 (-6/Cetus) Combat | -11 -10 -10 -10 -9 -8 -8 -8 -8 -7 -7 -7 -7 -7 -7 -6 -6 -6 -6 -6 -6 -5 -5 -4 -4 -3 -3 -2 -1 -------- Run | Yrd Mat Min Exi Min Mat Gar Mat Gar Fac Gar Fac Low Low Zio Pro Fac Ext Cet Arc Hub Fac Gar Fac Gar Res Gar Res Acc Hostile Shots Fired 1322 | . 19 20 . . 20 41 58 47 . 165 17 40 2 . 28 94 128 22 . 8 . 31 51 40 20 . 156 315 Missed 498 | . 4 1 . . 4 9 17 17 . 74 7 10 1 . 10 35 41 7 . 5 . 5 22 17 11 . 62 139 Hits 824 | . 15 19 . . 16 32 41 30 . 91 10 30 1 . 18 59 87 15 . 3 . 26 29 23 9 . 94 176 Melee 14 | . . . . . . 1 . 3 . . . 2 . . . 1 . . . . . . . . . . 1 6 Projectile 810 | . 15 19 . . 16 31 41 27 . 91 10 28 1 . 18 58 87 15 . 3 . 26 29 23 9 . 93 170 AOE 1 | . . . . . . . . . . . . . . . . . . . . . . . . . . . 1 . Critical Strikes 41 | . . . . . 3 2 1 1 . . . 1 . . 1 4 . 2 . . . 2 5 1 . . 9 9 Actively Blocked 3 | . . . . . . . . . . . . . . . . . . 2 . . . . . . . . 1 . Damage Taken 12798 | . 142 171 . . 201 412 590 525 . 729 396 499 61 . 218 892 951 353 . 99 . 281 507 307 196 . 1610 3658 Core 1043 | . 33 36 . . 62 30 16 83 . 96 36 76 . . 24 51 67 . . . . 14 74 34 . . 85 226 Absorbed by Shields 2264 | . . . . . . 30 . 6 . 192 . . . . . . 259 105 . . . 117 182 116 55 . 583 619 Redirected to Shielding 226 | . . . . . . 24 7 . . . . . 6 . 5 19 40 18 . 3 . . . . 8 . 96 . Ignored by Resistances 40 | . . . . . . . . 16 . . . . . . . . . . . . . 24 . . . . . . Regen/Repaired (Parts) 1513 | . . . . . . . . . . . 242 . . . . 58 144 . . . . 96 83 48 220 . 197 425 Core Remaining (%) 85 | 100 . . . 72 . . . 65 . . . . . . 66 . . . . 86 . 98 . 90 . 100 94 85 Volleys Fired 773 | 1 8 9 . . 14 41 78 45 . 59 31 19 1 . 10 31 65 16 . 14 1 53 29 40 24 16 53 115 Largest 4 | 2 2 2 . . 3 3 3 3 . 3 3 3 1 . 3 3 3 3 . 3 3 3 3 3 3 1 3 4 Hottest 313 | 40 40 90 . . 63 66 168 168 . 168 164 84 43 . 84 84 73 93 . 105 105 105 105 105 120 120 250 313 Shots Fired 1738 | 2 16 18 . . 40 84 209 111 . 131 52 43 1 . 26 91 160 46 . 42 3 113 65 95 46 16 110 218 Gun 1469 | 2 16 18 . . 40 69 202 108 . 116 42 36 . . 24 91 144 45 . 42 3 104 54 91 33 . 87 102 Cannon 103 | . . . . . . . . . . . . . . . . . . . . . . . . . 1 16 10 76 Launcher 70 | . . . . . . 15 7 3 . 11 1 3 1 . 2 . 2 . . . . 1 1 1 2 . 11 9 Special 96 | . . . . . . . . . . 4 9 4 . . . . 14 1 . . . 8 10 3 10 . 2 31 Kinetic 1142 | 2 16 . . . 40 69 136 . . . 23 36 . . 24 91 144 45 . 42 3 104 54 91 33 . 87 102 Thermal 412 | . . . . . . . 66 108 . 116 19 . . . . . . . . . . . . . 1 16 10 76 Explosive 50 | . . . . . . 15 1 . . . 1 3 1 . 2 . 2 . . . . 1 1 1 2 . 11 9 Electromagnetic 38 | . . 18 . . . . 6 3 . 11 . . . . . . . . . . . . . . . . . . Robot Hit Streak 27 | 1 5 8 . . 11 13 15 14 . 26 11 5 . . 7 12 27 9 . 9 1 25 13 10 19 7 13 19 Robot Miss Streak 8 | 1 2 2 . . 3 2 6 2 . 3 3 3 . . 2 2 4 3 . 2 2 3 3 2 2 3 5 8 Penetration Max 2 | . . . . . . . . . . . . 1 . . . 1 1 1 . 1 . 1 1 1 1 . 2 2 Secondary Targets 28 | . 1 3 . . 1 1 1 . . 1 . 2 . . . 3 2 1 . . . 4 1 3 . . 4 . Max Gunslinging Chain 1 | . 1 1 . . 1 1 1 . . 1 . 1 . . . 1 1 1 . . . 1 1 1 . . 1 . Shots Hit Robots 1100 | 1 9 14 . . 24 45 138 74 . 76 34 31 . . 16 63 109 36 2 27 1 71 46 49 33 7 72 122 Core Hits 683 | 1 5 13 . . 8 48 59 30 . 42 16 20 4 . 14 27 65 20 2 13 1 37 23 31 14 3 93 94 Critical Kills 26 | . . . . . . . 1 . . . . . . . . 3 1 . . 2 . 7 3 5 . . . 4 Critical Parts Destroyed 43 | . . . . . . 1 1 . . . . 1 . . . 3 4 2 . 7 . 9 5 3 1 . 2 4 Critical Strikes 108 | . . . . . . 1 10 9 . 11 1 1 . . 1 7 5 4 1 9 . 16 8 10 4 . 2 8 Burn 29 | . . . . . . . 8 9 . 11 1 . . . . . . . . . . . . . . . . . Meltdown 3 | . . . . . . . . . . . . . . . . . . . . . . . . . . . . 3 Destroy 75 | . . . . . . 1 2 . . . . 1 . . 1 7 5 4 . 9 . 16 8 10 4 . 2 5 Impale 1 | . . . . . . . . . . . . . . . . . . . 1 . . . . . . . . . Melee Attacks 80 | . . . . . . 3 4 12 . 10 15 7 5 . . 2 . 5 2 3 . 7 . 5 . . . . Impact . | . . . . . . . . . . . . . . . . . . . . . . . . . . . . . Slashing 3 | . . . . . . 3 . . . . . . . . . . . . . . . . . . . . . . Piercing 72 | . . . . . . . 4 12 . 10 15 7 5 . . 2 . 5 2 3 . 4 . 3 . . . . Sneak Attacks 21 | . . . . . . . . . . . 1 7 . . . . . 5 2 . . 4 . 2 . . . . Combat Hostiles . | . . . . . . . . . . . . . . . . . . . . . . . . . . . . . Follow-up Attacks . | . . . . . . . . . . . . . . . . . . . . . . . . . . . . . Damage Inflicted 36448 | 14 125 285 . . 334 2293 2649 1206 . 1309 731 1219 324 . 667 1414 3133 1094 133 1085 23 2283 1763 1781 1294 300 5284 5705 Guns 21845 | 14 120 231 . . 334 536 2113 1137 . 1164 513 503 . . 257 1412 2546 846 . 1085 23 1850 1251 1474 573 . 1962 1901 Cannons 1772 | . . . . . . . . . . . . . . . . . . . . . . . . . . 300 165 1307 Explosions 11644 | . . 41 . . . 1757 491 69 . 135 152 248 324 . 410 . 581 . . . . 337 512 307 626 . 3157 2497 Melee 993 | . . . . . . . . . . . 66 468 . . . . . 248 133 . . 78 . . . . . . Ramming 194 | . 5 13 . . . . 45 . . 10 . . . . . 2 6 . . . . 18 . . 95 . . . Kinetic 18269 | 14 120 . . . 334 536 1391 . . . 191 503 . . 257 1412 2546 846 . 1085 23 1850 1251 1474 573 . 1962 1901 Thermal 6447 | . . 41 . . . . 757 1137 . 1164 322 . . . . . . . . . . . . . . 300 680 2046 Explosive 9703 | . . . . . . 1757 49 . . . 152 248 324 . 410 . 581 . . . . 337 512 307 626 . 2642 1758 Electromagnetic 842 | . . 231 . . . . 407 69 . 135 . . . . . . . . . . . . . . . . . . Impact . | . . . . . . . . . . . . . . . . . . . . . . . . . . . . . Slashing . | . . . . . . . . . . . . . . . . . . . . . . . . . . . . . Piercing 993 | . . . . . . . . . . . 66 468 . . . . . 248 133 . . 78 . . . . . . Highest Corruption 5 | . . . . . . . . . . . 2 . . . . . . . 3 . . . 5 5 . . 2 1 Average Corruption 3 | . . . . . . . . . . . 1 . . . . . . . 2 . . . 3 5 . . 1 1 Corruption Purged 5 | . . . . . . . . . . . 2 . . . . . . . 3 . . . . . . . . . Corruption Blocked . | . . . . . . . . . . . . . . . . . . . . . . . . . . . . . Effects 41 | . . . . . . . . . . . . . . . . . . . . . . . 5 27 . . 2 7 Message Errors 9 | . . . . . . . . . . . . . . . . . . . . . . . . 7 . . . 2 Matter Fused 10 | . . . . . . . . . . . . . . . . . . . . . . . 3 6 . . . 1 Heat Flow Errors 2 | . . . . . . . . . . . . . . . . . . . . . . . . 1 . . . 1 Energy Discharges 5 | . . . . . . . . . . . . . . . . . . . . . . . . 4 . . . 1 Parts Fused 1 | . . . . . . . . . . . . . . . . . . . . . . . . 1 . . . . Data Loss (minor) 6 | . . . . . . . . . . . . . . . . . . . . . . . . 5 . . 1 . Data Loss (major) 3 | . . . . . . . . . . . . . . . . . . . . . . . 2 . . . . 1 Misfires 2 | . . . . . . . . . . . . . . . . . . . . . . . . 1 . . . 1 Weapon Failures 3 | . . . . . . . . . . . . . . . . . . . . . . . . 2 . . 1 . Overload Shots . | . . . . . . . . . . . . . . . . . . . . . . . . . . . . . Overflow Damage 350 | . . . . . . 9 11 . . . . . . . 8 . 25 . . . . 68 41 62 28 . 25 73 Projectiles 48 | . . . . . . . . . . . . . . . . . . . . . . . . . . . 1 47 Explosions 302 | . . . . . . 9 11 . . . . . . . 8 . 25 . . . . 68 41 62 28 . 24 26 Melee . | . . . . . . . . . . . . . . . . . . . . . . . . . . . . . Knockbacks 3 | . . 1 . . . . 1 . . . . . . . . 1 . . . . . . . . . . . . Impact 3 | . . 1 . . . . 1 . . . . . . . . 1 . . . . . . . . . . . . Kinetic . | . . . . . . . . . . . . . . . . . . . . . . . . . . . . . Secondary . | . . . . . . . . . . . . . . . . . . . . . . . . . . . . . Self-Inflicted Damage 275 | . . . . . . 1 23 . . 34 . . 46 . . . 28 . . . . . . . . . 32 111 Shots 17 | . . . . . . 1 1 . . 3 . . 1 . . . 1 . . . . . . . . . 5 5 Rammed 6 | . 2 4 . . . . . . . . . . . . . . . . . . . . . . . . . . Targets Rammed 24 | . 2 4 . . . . 9 . . 1 . . . . . 2 2 . . . . 1 . . 3 . . . Kicked 18 | . . . . . . . 9 . . 1 . . . . . 2 2 . . . . 1 . . 3 . . . Crushed . | . . . . . . . . . . . . . . . . . . . . . . . . . . . . . Highest Temperature 464 | . . 120 . . 9 10 54 245 . 78 48 . . . . 19 . . . . . 26 12 229 67 148 370 464 Average Temperature 68 | . . 53 . . 4 8 18 59 . 25 25 . . . . 10 . . . . . 10 5 19 11 60 111 124 Received Heat Transfer 2477 | . 30 33 . . 108 195 270 180 . 163 30 159 . . 105 354 197 18 . 18 . 72 43 61 24 . 68 349 Effects 3 | . . . . . . . . . . . . . . . . . . . . . . . . . . . . 3 Shutdowns 1 | . . . . . . . . . . . . . . . . . . . . . . . . . . . . 1 Interference 2 | . . . . . . . . . . . . . . . . . . . . . . . . . . . . 2 Siege Activations . | . . . . . . . . . . . . . . . . . . . . . . . . . . . . . Martial Activations . | . . . . . . . . . . . . . . . . . . . . . . . . . . . . . Shielding Activations . | . . . . . . . . . . . . . . . . . . . . . . . . . . . . . Robots Disrupted . | . . . . . . . . . . . . . . . . . . . . . . . . . . . . . Combat Hostiles . | . . . . . . . . . . . . . . . . . . . . . . . . . . . . . Robots Corrupted . | . . . . . . . . . . . . . . . . . . . . . . . . . . . . . Combat Hostiles . | . . . . . . . . . . . . . . . . . . . . . . . . . . . . . Parts Fried 6 | . . 2 . . . . 4 . . . . . . . . . . . . . . . . . . . . . Impact Corruptions . | . . . . . . . . . . . . . . . . . . . . . . . . . . . . . Robots Melted 20 | . . . . . . . 1 . . 2 . . . . . . . . . . . . . . . . 6 11 Combat Hostiles 18 | . . . . . . . . . . 2 . . . . . . . . . . . . . . . . 5 11 Parts Melted 76 | . . . . . . . 3 6 . 14 5 . . . . . . . . . . . . . . . 8 40 Heat Transferred 20584 | . . 100 . . . . 2492 3515 . 3737 782 . . . . . . . . . . . . . . 259 3520 6179 Parts Sabotaged . | . . . . . . . . . . . . . . . . . . . . . . . . . . . . . Parts Stolen . | . . . . . . . . . . . . . . . . . . . . . . . . . . . . . Parts Stripped . | . . . . . . . . . . . . . . . . . . . . . . . . . . . . . Power Chain Reactions 3 | . . 1 . . . . 1 . . 1 . . . . . . . . . . . . . . . . . . Alert | -11 -10 -10 -10 -9 -8 -8 -8 -8 -7 -7 -7 -7 -7 -7 -6 -6 -6 -6 -6 -6 -5 -5 -4 -4 -3 -3 -2 -1 ------- Run | Yrd Mat Min Exi Min Mat Gar Mat Gar Fac Gar Fac Low Low Zio Pro Fac Ext Cet Arc Hub Fac Gar Fac Gar Res Gar Res Acc Maximum Alert Level 5 | . . . . . . 3 2 4 2 3 1 . . . . 1 2 1 1 3 1 3 5 5 3 2 4 3 Low Security (%) 36 | 100 100 100 . 100 100 16 . . . 6 83 . . . . 98 23 8 94 10 65 10 . . . . . . Level 1 15 | . . . . . . 11 32 4 71 30 16 . . . . 1 47 91 5 17 34 5 . . . 33 11 . Level 2 24 | . . . . . . 20 67 17 28 58 . . . . . . 29 . . 70 . 42 10 . 59 66 8 51 Level 3 15 | . . . . . . 51 . 74 . 4 . . . . . . . . . 1 . 40 3 . 40 . 73 48 Level 4 4 | . . . . . . . . 4 . . . . . . . . . . . . . . 62 61 . . 6 . Level 5 2 | . . . . . . . . . . . . . . . . . . . . . . . 24 38 . . . . High Security . | . . . . . . . . . . . . . . . . . . . . . . . . . . . . . Max Security . | . . . . . . . . . . . . . . . . . . . . . . . . . . . . . Peak Influence 1910 | 5 67 123 . . 98 848 565 1121 602 748 392 . . . . 250 692 329 231 706 261 1039 1660 1910 1074 579 1408 1075 Initial 1155 | . . . . . . 63 413 336 588 166 392 . . . . . 110 194 103 . 261 34 545 1155 1074 396 325 840 Average 432 | . 12 26 . . 6 548 438 832 368 462 70 . . . . 90 319 283 31 475 159 584 1312 1487 747 423 834 695 Influence Increases 16150 | 5 135 224 . . 198 815 930 1025 30 702 301 245 117 . 229 660 1176 345 198 1306 10 1065 1411 895 251 483 1837 1557 Destroy 0b10 Robot/C 7780 | . 100 180 . . 100 480 520 600 . 380 140 180 80 . 160 320 580 160 80 440 . 540 500 520 120 . 820 780 Destroy 0b10 Robot/NC 330 | 5 . . . . 5 . 65 5 . . 10 . . . 5 10 35 10 10 40 5 5 10 . . . 75 35 Destroy Leader 1126 | . 10 40 . . 30 20 164 30 . 30 52 10 10 . 10 72 64 . . 98 2 30 100 30 30 . 122 172 Allied During Kill 2397 | . . 1 . . . 2 43 85 . 11 13 40 27 . 39 24 386 170 90 540 1 110 276 49 . . 457 33 Trap Triggered on 0b10 20 | . . . . . 20 . . . . . . . . . . . . . . . . . . . . . . . Successful Hack 396 | . 25 . . . 12 14 14 28 30 . 34 . . . . 106 . . . . . 7 32 . 61 12 21 . Disable Machine 645 | . . . . . . . 15 15 . . 30 . . . . 60 45 . 15 150 . 30 210 . . . 15 60 Anti-Garrison Action 1400 | . . . . . . 200 . 200 . 200 . . . . . . . . . . . 200 . 150 . 450 . . Destroy Structure 1546 | . . 3 . . 1 84 19 47 . 51 7 . . . . 38 36 5 3 38 2 128 268 101 40 21 312 342 Partial Spotted 45 | . . . . . . . 45 . . . . . . . . . . . . . . . . . . . . . Lose Combat Pursuer 465 | . . . . . 30 15 45 15 . 30 15 15 . . 15 30 30 . . . . 15 15 45 . . 15 135 Influence Decreases 15087 | 5 135 224 . . 100 65 1261 421 913 192 1049 245 117 . 229 434 1054 434 457 772 495 75 800 635 1632 433 1014 1896 Entered New Map 5100 | . . . . . . 35 435 181 533 72 356 . . . . . 116 154 156 . 273 15 494 495 836 133 254 562 Time Decay 5592 | 5 135 213 . . 100 . 656 . 230 . 389 225 117 . 209 364 538 170 261 262 222 . 246 . 246 . 470 534 Lost Part 280 | . . . . . . 10 20 20 . 20 10 . . . . 10 20 10 . 10 . . . . . . 20 130 Lost Ally 1661 | . . 11 . . . 20 . 220 . 100 40 20 . . 20 60 80 100 40 200 . 60 60 140 . . 270 220 Purge Threat 2454 | . . . . . . . 150 . 150 . 254 . . . . . 300 . . 300 . . . . 550 300 . 450 Squads Dispatched 67 | . . . . . 6 . 9 . 2 . 4 . . . . 6 4 . . 6 . . 8 . 3 . 8 11 Investigation 16 | . . . . . 3 . 1 . 1 . 1 . . . . 2 1 . . . . . 3 . 3 . . 1 Extermination 14 | . . . . . . . . . 1 . 2 . . . . 3 . . . 1 . . 1 . . . 3 3 Reinforcement 20 | . . . . . 1 . 3 . . . 1 . . . . 1 2 . . 5 . . . . . . 4 3 Assault 8 | . . . . . . . 1 . . . . . . . . . 1 . . . . . 4 . . . 1 1 Garrison 9 | . . . . . 2 . 4 . . . . . . . . . . . . . . . . . . . . 3 Intercept . | . . . . . . . . . . . . . . . . . . . . . . . . . . . . . Searches Triggered . | . . . . . . . . . . . . . . . . . . . . . . . . . . . . . Unchained Authorized 1 | . . . . . . . . . . . . . . . . . . . . . . . . . . . 1 . Construction Impeded 5 | . . . . . . . 1 . . . . . . . . . . . . 1 . . . . . . 2 1 Haulers Reinforced 3 | . . . . . . . . . . . . . . . . . . . . 2 . . . . . . . 1 Active Scanning Responses . | . . . . . . . . . . . . . . . . . . . . . . . . . . . . . Cargo Convoy Interrupts . | . . . . . . . . . . . . . . . . . . . . . . . . . . . . . Alert ID Control Effect 14 | . . . . . . . . . . 2 . 4 . . . . . . . . . . 1 2 . . . 5 Stealth | -11 -10 -10 -10 -9 -8 -8 -8 -8 -7 -7 -7 -7 -7 -7 -6 -6 -6 -6 -6 -6 -5 -5 -4 -4 -3 -3 -2 -1 --------- Run | Yrd Mat Min Exi Min Mat Gar Mat Gar Fac Gar Fac Low Low Zio Pro Fac Ext Cet Arc Hub Fac Gar Fac Gar Res Gar Res Acc Distress Signals 26 | . 1 . . . . . 3 1 . . . . . . . 2 1 2 . 3 . . 2 . 6 . 1 4 Communications Jammed 132 | . . . . . . . . . . . . . . . . . . . . . . . . . . . 3 129 Distress Signals 132 | . . . . . . . . . . . . . . . . . . . . . . . . . . . 3 129 Times Spotted 455 | . 7 9 . . 7 26 44 32 . 24 12 14 4 . 9 16 27 10 1 8 1 19 27 21 16 . 45 76 Peak Tracking Total 10 | . 3 5 . . 3 5 5 5 . 4 2 7 4 . 4 3 5 5 1 4 1 4 6 5 5 . 8 10 Tactical Retreats 23 | . . . . . 1 1 2 1 . 2 1 1 . . 1 1 2 . . . . 1 1 2 . . 1 5 Traps | -11 -10 -10 -10 -9 -8 -8 -8 -8 -7 -7 -7 -7 -7 -7 -6 -6 -6 -6 -6 -6 -5 -5 -4 -4 -3 -3 -2 -1 ------- Run | Yrd Mat Min Exi Min Mat Gar Mat Gar Fac Gar Fac Low Low Zio Pro Fac Ext Cet Arc Hub Fac Gar Fac Gar Res Gar Res Acc Traps Triggered 19 | . . . . . . 2 . 4 . 3 1 . . . . 1 1 . . . . 3 1 2 . . . 1 Indirectly . | . . . . . . . . . . . . . . . . . . . . . . . . . . . . . Trap Hack Attempts 2 | . . . . . . . . . . . . . . . . . . . . . . 2 . . . . . . Triggered . | . . . . . . . . . . . . . . . . . . . . . . . . . . . . . Disarmed 7 | . . . . . . . . . . . 6 . . . . . . . . . . 1 . . . . . . Reprogrammed . | . . . . . . . . . . . . . . . . . . . . . . . . . . . . . Reused 2 | . . . . . 2 . . . . . . . . . . . . . . . . . . . . . . . Traps Extracted . | . . . . . . . . . . . . . . . . . . . . . . . . . . . . . Installed 3 | . . . . . 3 . . . . . . . . . . . . . . . . . . . . . . . Triggered 2 | . . . . . 2 . . . . . . . . . . . . . . . . . . . . . . . Most Traps Carried 3 | . . 3 3 3 3 . . . . . . . . . . . . . . . . . . . . . . . Machines | -11 -10 -10 -10 -9 -8 -8 -8 -8 -7 -7 -7 -7 -7 -7 -6 -6 -6 -6 -6 -6 -5 -5 -4 -4 -3 -3 -2 -1 ---------- Run | Yrd Mat Min Exi Min Mat Gar Mat Gar Fac Gar Fac Low Low Zio Pro Fac Ext Cet Arc Hub Fac Gar Fac Gar Res Gar Res Acc Machines Disabled 60 | . . . . . . 2 1 4 . 2 2 1 . . . 4 4 1 1 10 . 5 14 1 . 3 1 4 Max in Single Turn 5 | . . . . . . 1 1 1 . 1 1 1 . . . 1 1 . . 5 . 1 2 1 . 1 1 1 Garrison Access 6 | . . . . . . . . . . . 2 . . . . . . . . . . . . . . . . 4 Garrison Relay 12 | . . . . . . 2 . 2 . 2 . . . . . . . . . . . 2 . 1 . 3 . . Network Hub 2 | . . . . . . . . . . . . . . . . . . . . 2 . . . . . . . . Machines Repaired . | . . . . . . . . . . . . . . . . . . . . . . . . . . . . . Machines Dismantled 5 | . . . . . . . . 1 . . . . . . . . 2 . . 2 . . . . . . . . Machines Sabotaged . | . . . . . . . . . . . . . . . . . . . . . . . . . . . . . Overloaded Fab Kills . | . . . . . . . . . . . . . . . . . . . . . . . . . . . . . Hacking | -11 -10 -10 -10 -9 -8 -8 -8 -8 -7 -7 -7 -7 -7 -7 -6 -6 -6 -6 -6 -6 -5 -5 -4 -4 -3 -3 -2 -1 --------- Run | Yrd Mat Min Exi Min Mat Gar Mat Gar Fac Gar Fac Low Low Zio Pro Fac Ext Cet Arc Hub Fac Gar Fac Gar Res Gar Res Acc Machines Accessed 75 | . 4 . 2 . 3 1 8 3 4 4 11 2 . . . 12 1 . . . 1 2 4 1 3 1 1 7 Terminals 31 | . 4 . . . 1 1 4 3 2 4 4 . . . . 3 . . . . . 2 1 1 . 1 . . Fabricators 8 | . . . . . . . . . . . 1 . . . . 4 . . . . . . 1 . . . 1 1 Repair Stations 9 | . . . . . . . 2 . . . 1 . . . . 2 1 . . . . . 1 . 1 . . 1 Recycling Units 2 | . . . . . . . . . . . 1 . . . . 1 . . . . . . . . . . . . Scanalyzers 9 | . . . . . 1 . 1 . 1 . 2 . . . . 2 . . . . . . . . 1 . . 1 Garrison Access 12 | . . . . . 1 . 1 . 1 . 2 . . . . . . . . . 1 . 1 . 1 . . 4 Total Hacks 195 | . 12 . 2 . 9 1 17 5 9 6 32 4 . . . 29 3 . . . 7 4 17 2 19 1 3 13 Successful 107 | . 5 . 2 . 5 1 10 2 6 1 19 4 . . . 16 2 . . . 1 2 6 1 13 1 1 9 Failed 86 | . 7 . . . 4 . 7 3 3 5 12 . . . . 13 1 . . . 6 2 11 1 5 . 2 4 Catastrophic 28 | . 2 . . . 1 . 4 . . 2 3 . . . . 3 . . . . 3 2 4 1 2 . . 1 Database Lockouts 2 | . . . . . . . . . . . 1 . . . . . . . . . . . . . 1 . . . Manual 65 | . 10 . 1 . 2 . 5 . 5 . 3 . . . . 3 1 1 . . 6 . 19 . 3 . 3 3 Terminals 64 | . 12 . . . 2 1 8 5 5 6 9 . . . . 7 . . . . . 4 2 2 . 1 . . Fabricators 23 | . . . . . . . . . . . 3 . . . . 11 . . . . . . 5 . . . 3 1 Repair Stations 35 | . . . . . . . 4 . . . 10 . . . . 6 3 . . . . . 5 . 4 . . 3 Recycling Units 4 | . . . . . . . . . . . 3 . . . . 1 . . . . . . . . . . . . Scanalyzers 28 | . . . . . 4 . 3 . 2 . 3 . . . . 4 . . . . . . . . 11 . . 1 Garrison Access 35 | . . . . . 3 . 2 . 2 . 4 . . . . . . . . . 7 . 5 . 4 . . 8 Terminal Hacks 28 | . 5 . 2 . . 1 3 2 1 1 2 4 . . . 2 . . . . . 2 1 1 . 1 . . Record 4 | . . . 1 . . . . . . . . 3 . . . . . . . . . . . . . . . . Part Schematic 1 | . 1 . . . . . . . . . . . . . . . . . . . . . . . . . . . Robot Schematic 1 | . . . . . . . . . . . 1 . . . . . . . . . . . . . . . . . Robot Analysis 4 | . 3 . . . . . . . . . . . . . . 1 . . . . . . . . . . . . Prototype ID Bank 1 | . 1 . . . . . . . . . . . . . . . . . . . . . . . . . . . Open Door 4 | . . . . . . . . . . 1 . 1 . . . 1 . . . . . 1 . . . . . . Open DSF 1 | . . . . . . . . . . . . . . . . . . . . . . . 1 . . . . . Emergency Access Points 2 | . . . . . . . . . . . . . . . . . . . . . . 1 . 1 . . . . Unreport Threat 2 | . . . . . . . 1 . 1 . . . . . . . . . . . . . . . . . . . Locate Traps 1 | . . . . . . . 1 . . . . . . . . . . . . . . . . . . . . . Disarm Traps 1 | . . . . . . . . . . . 1 . . . . . . . . . . . . . . . . . Zone Layout 1 | . . . . . . . 1 . . . . . . . . . . . . . . . . . . . . . Garrison Registry 2 | . . . . . . 1 . 1 . . . . . . . . . . . . . . . . . . . . Patrol Navigation 2 | . . . . . . . . 1 . . . . . . . . . . . . . . . . . 1 . . Proto ID Catalog 1 | . . . 1 . . . . . . . . . . . . . . . . . . . . . . . . . Fabricator Hacks 8 | . . . . . . . . . . . 1 . . . . 6 . . . . . . 1 . . . . . Network Status 2 | . . . . . . . . . . . . . . . . 1 . . . . . . 1 . . . . . Load Schematic 4 | . . . . . . . . . . . 1 . . . . 3 . . . . . . . . . . . . Build 2 | . . . . . . . . . . . . . . . . 2 . . . . . . . . . . . . Repair Station Hacks 19 | . . . . . . . 2 . . . 8 . . . . 4 1 . . . . . 1 . 3 . . . Scan Component 13 | . . . . . . . 2 . . . 4 . . . . 3 1 . . . . . 1 . 2 . . . Repair 6 | . . . . . . . . . . . 4 . . . . 1 . . . . . . . . 1 . . . Recycling Unit Hacks 1 | . . . . . . . . . . . 1 . . . . . . . . . . . . . . . . . Retrieve Components 1 | . . . . . . . . . . . 1 . . . . . . . . . . . . . . . . . Scanalyzer 21 | . . . . . 3 . 3 . 2 . 2 . . . . 2 . . . . . . . . 9 . . . Insert Component 5 | . . . . . . . 1 . 1 . . . . . . . . . . . . . . . 3 . . . Analyze 6 | . . . . . . . 1 . 1 . . . . . . . . . . . . . . . 4 . . . Retrieve Study 10 | . . . . . 3 . 1 . . . 2 . . . . 2 . . . . . . . . 2 . . . Garrison Access Hacks 18 | . . . . . 1 . 1 . 1 . 4 . . . . . . . . . 1 . 1 . 1 . . 8 Unlock Access 6 | . . . . . 1 . 1 . 1 . . . . . . . . . . . 1 . 1 . 1 . . . Seal Access 6 | . . . . . . . . . . . 2 . . . . . . . . . . . . . . . . 4 Coupler Status 6 | . . . . . . . . . . . 2 . . . . . . . . . . . . . . . . 4 Unauthorized Hacks 12 | . . . . . 1 . 1 . 2 . 1 . . . . 2 1 . . . . . 2 . . . 1 1 Terminals 3 | . . . . . . . . . 1 . 1 . . . . 1 . . . . . . . . . . . . Assimilate 1 | . . . . . . . . . . . 1 . . . . . . . . . . . . . . . . . Botnet 2 | . . . . . . . . . 1 . . . . . . 1 . . . . . . . . . . . . Fabricators 3 | . . . . . . . . . . . . . . . . 1 . . . . . . 1 . . . 1 . Prioritize 1 | . . . . . . . . . . . . . . . . 1 . . . . . . . . . . . . Liberate 2 | . . . . . . . . . . . . . . . . . . . . . . . 1 . . . 1 . Repair Stations 2 | . . . . . . . . . . . . . . . . . 1 . . . . . . . . . . 1 Patch 2 | . . . . . . . . . . . . . . . . . 1 . . . . . . . . . . 1 Recycling Units . | . . . . . . . . . . . . . . . . . . . . . . . . . . . . . Scanalyzers . | . . . . . . . . . . . . . . . . . . . . . . . . . . . . . Garrison Access 4 | . . . . . 1 . 1 . 1 . . . . . . . . . . . . . 1 . . . . . Reprogram 4 | . . . . . 1 . 1 . 1 . . . . . . . . . . . . . 1 . . . . . Data Cores Recovered 1 | . . . . . . . . . . . . . . . . 1 . . . . . . . . . . . . Used 1 | . . . . . . . . . . . . . . . . 1 . . . . . . . . . . . . Hacking Detections 63 | . 4 . . . 3 1 8 2 3 4 10 . . . . 11 1 . . . 1 2 4 1 3 . 1 4 Full Trace Events 8 | . . . . . 2 . . . . . 1 . . . . 2 . . . . . . 2 . 1 . . . Feedback Events . | . . . . . . . . . . . . . . . . . . . . . . . . . . . . . Feedback Blocked . | . . . . . . . . . . . . . . . . . . . . . . . . . . . . . Robot Schematics Acquired 1 | . . . . . . . . . . . 1 . . . . . . . . . . . . . . . . . Robots Built 2 | . . . . . . . . . . . . . . . . 2 . . . . . . . . . . . . Authchips . | . . . . . . . . . . . . . . . . . . . . . . . . . . . . . Time 67 | . . . . . . . . . . . . . . . . 67 . . . . . . . . . . . . Total Robot Build Rating 8 | . . . . . . . . . . . . . . . . 8 . . . . . . . . . . . . Part Schematics Acquired 5 | . 1 . . . . . 1 . 1 . . . . . . . . . . . . . . . 2 . . . Parts Built 2 | . . . . . . . . . . . . . . . . 2 . . . . . . . . . . . . Authchips . | . . . . . . . . . . . . . . . . . . . . . . . . . . . . . Time 47 | . . . . . . . . . . . . . . . . 47 . . . . . . . . . . . . Total Part Build Rating 10 | . . . . . . . . . . . . . . . . 10 . . . . . . . . . . . . Part Studies Acquired 10 | . . . . . 3 . 1 . . . 2 . . . . 2 . . . . . . . . 2 . . . Parts Repaired 6 | . . . . . . . . . . . 4 . . . . 1 . . . . . . . . 1 . . . Time 183 | . . . . . . . . . . . 134 . . . . 16 . . . . . . . . 33 . . . Parts Recycled . | . . . . . . . . . . . . . . . . . . . . . . . . . . . . . Recycled Matter . | . . . . . . . . . . . . . . . . . . . . . . . . . . . . . Retrieved Matter . | . . . . . . . . . . . . . . . . . . . . . . . . . . . . . Retrieved Components 2 | . . . . . . . . . . . 2 . . . . . . . . . . . . . . . . . Parts Scanalyzed 4 | . . . . . . . 1 . 1 . . . . . . . . . . . . . . . 2 . . . Part Schematics Acquired 4 | . . . . . . . 1 . 1 . . . . . . . . . . . . . . . 2 . . . Parts Damaged 1 | . . . . . . . 1 . . . . . . . . . . . . . . . . . . . . . Bothacking | -11 -10 -10 -10 -9 -8 -8 -8 -8 -7 -7 -7 -7 -7 -7 -6 -6 -6 -6 -6 -6 -5 -5 -4 -4 -3 -3 -2 -1 ------------ Run | Yrd Mat Min Exi Min Mat Gar Mat Gar Fac Gar Fac Low Low Zio Pro Fac Ext Cet Arc Hub Fac Gar Fac Gar Res Gar Res Acc Used RIF Installer 6 | . . . . . . 1 . 1 . 1 . . . . . . . . . . . 1 . 1 . 1 . . Coupler Efficiency 1 | . . . . . . . . 1 . . . . . . . . . . . . . . . . . . . . Code Merge 1 | . . . . . . . . . . . . . . . . . . . . . . . . . . 1 . . Watcher Feeds 1 | . . . . . . . . . . . . . . . . . . . . . . 1 . . . . . . Alert ID Control 1 | . . . . . . . . . . 1 . . . . . . . . . . . . . . . . . . Program Shield 1 | . . . . . . . . . . . . . . . . . . . . . . . . 1 . . . . Robots Hacked 42 | . . . . . . . . . . 3 5 2 . . . . 1 1 . . . 1 3 2 3 . 1 20 Non-combat 10 | . . . . . . . . . . . 4 . . . . . . . . . . . . . 1 . 1 4 Combat 30 | . . . . . . . . . . 3 1 2 . . . . 1 1 . . . 1 3 . 2 . . 16 Robot Hacks Applied 51 | . . . . . . . . . . 3 7 2 . . . . 1 1 . . . 1 3 . 10 . 2 21 parse_system 6 | . . . . . . . . . . . . . . . . . 1 1 . . . 1 . . 2 . . 1 generate_echo 1 | . . . . . . . . . . . 1 . . . . . . . . . . . . . . . . . ignore_parts 1 | . . . . . . . . . . . 1 . . . . . . . . . . . . . . . . . purge_threat 8 | . . . . . . . . . . . 2 . . . . . . . . . . . . . 6 . . . block_reporting 1 | . . . . . . . . . . . . . . . . . . . . . . . . . 1 . . . map_route 2 | . . . . . . . . . . . . . . . . . . . . . . . . . . . . 2 find_shortcuts 1 | . . . . . . . . . . . . . . . . . . . . . . . . . . . . 1 overload_power 2 | . . . . . . . . . . . . . . . . . . . . . . . . . . . . 2 amplify_resonance 5 | . . . . . . . . . . . . . . . . . . . . . . . 2 . . . 1 2 reboot_system 1 | . . . . . . . . . . . . 1 . . . . . . . . . . . . . . . . overwrite_iff 6 | . . . . . . . . . . 2 . . . . . . . . . . . . . . . . . 4 streamctrl_high 1 | . . . . . . . . . . . . . . . . . . . . . . . . . . . . 1 formatsys_low 6 | . . . . . . . . . . . 2 . . . . . . . . . . . . . 1 . 1 2 formatsys_high 10 | . . . . . . . . . . 1 1 1 . . . . . . . . . . 1 . . . . 6 Manual 2 | . . . . . . . . . . . . . . . . . . . . . . . . 2 . . . . Relay Couplers Released 56 | . . . . . . 6 . 7 . 8 . . . . . . . . . . . 10 . 5 . 13 . 7 Machine Destruction 56 | . . . . . . 6 . 7 . 8 . . . . . . . . . . . 10 . 5 . 13 . 7 Attached 14 | . . . . . . . . . . 1 2 . . . . . . . . . . . 1 . 2 1 . 7 Merged Code Value 30 | . . . . . . . . . . . . . . . . . . . . . . . . . . 30 . . Fabnet Peak Effective % . | . . . . . . . . . . . . . . . . . . . . . . . . . . . . . Robots Rewired 52 | . . . . . . 3 . 10 . 3 . 2 . . . . 14 . . . . 6 1 1 . 12 . . Allies Hacked 2 | . . . . . . . . 1 . . 1 . . . . . . . . . . . . . . . . . Hacks Repelled . | . . . . . . . . . . . . . . . . . . . . . . . . . . . . . Allies | -11 -10 -10 -10 -9 -8 -8 -8 -8 -7 -7 -7 -7 -7 -7 -6 -6 -6 -6 -6 -6 -5 -5 -4 -4 -3 -3 -2 -1 -------- Run | Yrd Mat Min Exi Min Mat Gar Mat Gar Fac Gar Fac Low Low Zio Pro Fac Ext Cet Arc Hub Fac Gar Fac Gar Res Gar Res Acc Total Allies 108 | . . 3 . . 1 3 1 10 1 6 3 5 . . . 3 20 5 . . . 6 6 5 1 14 1 14 Largest Group 19 | . . 3 . . 1 2 4 7 3 3 3 5 4 4 4 3 19 18 16 14 1 4 5 4 1 15 15 3 Highest-Rated Group 906 | . . 40 . . 15 80 131 131 82 82 82 129 109 109 109 100 723 859 798 735 96 432 481 226 45 906 906 281 Highest-Rated Ally 183 | . . 16 . . 15 40 40 40 37 37 32 32 32 32 32 37 159 159 96 96 96 148 148 142 45 119 119 183 Total Orders 89 | . . . . . . . 2 12 . 2 10 . . . . 8 10 5 2 2 . 4 2 1 1 2 17 9 STAY 28 | . . . . . . . 1 3 . 1 4 . . . . 1 1 2 1 . . 2 . . . . 9 3 ROAM 7 | . . . . . . . . 2 . . . . . . . . . . . 1 . . . 1 . . 3 . FOLLOW 21 | . . . . . . . 1 2 . 1 5 . . . . 2 1 2 1 . . 2 . . . . 4 . GUARD 4 | . . . . . . . . 4 . . . . . . . . . . . . . . . . . . . . AID 2 | . . . . . . . . 1 . . 1 . . . . . . . . . . . . . . . . . RETURN 27 | . . . . . . . . . . . . . . . . 5 8 1 . 1 . . 2 . 1 2 1 6 Ally Attacks 821 | . . 10 . . 1 11 45 90 . 24 8 22 . . 12 29 93 57 52 109 2 21 49 42 . . 98 46 Total Damage 23465 | . . 54 . . . 232 897 1826 . 283 187 634 . . 279 891 1568 1100 851 3006 46 777 2877 1986 . . 4085 1886 Kills 155 | . . . . . . 2 9 18 . 2 . 5 . . 3 9 10 6 4 21 . 6 20 14 . . 19 7 Allies Corrupted 5 | . . . . . . . . 1 . . . 1 . . . . . . . 3 . . . . . . . . Allies Melted 3 | . . . . . . . . 1 . . . . . . . 1 . . . . . 1 . . . . . . Intel | -11 -10 -10 -10 -9 -8 -8 -8 -8 -7 -7 -7 -7 -7 -7 -6 -6 -6 -6 -6 -6 -5 -5 -4 -4 -3 -3 -2 -1 ------- Run | Yrd Mat Min Exi Min Mat Gar Mat Gar Fac Gar Fac Low Low Zio Pro Fac Ext Cet Arc Hub Fac Gar Fac Gar Res Gar Res Acc Active Infowar (turns) 5516 | . 4 767 405 . . . . . . . . . . . . . . . . . . . 254 26 522 1038 1179 1321 Seismic 1176 | . 4 767 405 . . . . . . . . . . . . . . . . . . . . . . . . . Jamming 4340 | . . . . . . . . . . . . . . . . . . . . . . . 254 26 522 1038 1179 1321 Robot Analysis Total 4 | . 3 . . . . . . . . . . . . . . 1 . . . . . . . . . . . . Derelict Logs Recovered 5 | . . 1 . . . . . . . . . 1 1 . 2 . . . . . . . . . . . . . Drone Launches 27 | . . . . . . . . . . . . . . . . 5 8 1 . 1 . . 2 . 1 2 1 6 Drone Recoveries 27 | . . . . . . . . . . . . . . . . 5 8 1 . 1 . . 2 . 1 2 1 6 Exploration | -11 -10 -10 -10 -9 -8 -8 -8 -8 -7 -7 -7 -7 -7 -7 -6 -6 -6 -6 -6 -6 -5 -5 -4 -4 -3 -3 -2 -1 ------------- Run | Yrd Mat Min Exi Min Mat Gar Mat Gar Fac Gar Fac Low Low Zio Pro Fac Ext Cet Arc Hub Fac Gar Fac Gar Res Gar Res Acc Turns Passed 30087 | 130 550 767 461 421 1226 1206 2443 1342 489 1251 1823 1685 942 202 1305 1485 1520 342 2161 568 463 1304 530 1207 533 1038 1191 1502 Spaces Moved 17151 | 72 301 429 282 216 508 654 1126 700 172 824 1270 1325 820 153 1027 1074 934 183 200 357 199 982 332 741 325 643 473 829 Core 140 | 2 . . . . . . . . . . . . . . . . . . 138 . . . . . . . . . Treads 1297 | 70 301 429 282 215 . . . . . . . . . . . . . . . . . . . . . . . . Legs 15714 | . . . . 1 508 654 1126 700 172 824 1270 1325 820 153 1027 1074 934 183 62 357 199 982 332 741 325 643 473 829 Wheels . | . . . . . . . . . . . . . . . . . . . . . . . . . . . . . Hover . | . . . . . . . . . . . . . . . . . . . . . . . . . . . . . Flight . | . . . . . . . . . . . . . . . . . . . . . . . . . . . . . Fastest Speed 50 | 50 160 160 160 160 105 105 105 105 105 105 105 111 111 111 111 107 107 107 107 105 105 105 114 115 110 110 110 110 Average Speed 124 | 156 160 160 160 191 105 105 131 116 105 105 108 111 111 111 111 107 107 107 930 105 105 105 114 115 113 110 112 111 Slowest Speed 1300 | 160 160 160 160 240 120 105 175 175 105 105 111 111 111 111 111 110 107 107 1300 107 105 114 115 115 115 110 113 117 Overloaded Moves . | . . . . . . . . . . . . . . . . . . . . . . . . . . . . . Propulsion Burnouts . | . . . . . . . . . . . . . . . . . . . . . . . . . . . . . Robots Hopped . | . . . . . . . . . . . . . . . . . . . . . . . . . . . . . Potential Cave-ins . | . . . . . . . . . . . . . . . . . . . . . . . . . . . . . Cave-ins Triggered . | . . . . . . . . . . . . . . . . . . . . . . . . . . . . . Exploration Rate (%) 52 | 4 53 94 69 41 23 58 71 72 3 84 31 98 96 13 98 31 88 66 74 33 5 91 14 81 11 85 9 35 Regions Visited 28 Branch Regions 11 Pre-discovered Areas 2 | . . . 1 . . . . . . . . . . . 1 . . . . . . . . . . . . . Known Exits Taken 12 | . . . . . 1 . 1 . 1 . . . 1 . 1 1 1 . . 1 1 . 1 . 1 . 1 . Unknown Exits Taken 10 | 1 1 1 1 1 . . . . . . 1 1 . 1 . . . 1 1 . . . . . . . . . Scrap Searched 11 | . . 1 . 1 . . . . . . . 4 2 . 3 . . . . . . . . . . . . . Spaces Dug 152 | . . . . . . 23 12 2 . 5 4 . 17 . . 1 18 . . 3 . 1 . 2 1 1 2 60 Terrain Destroyed 533 | . . 3 . . . 79 15 2 . 14 7 38 17 . 10 36 25 1 . 5 1 12 8 26 20 3 88 123 Melee 21 | . . . . . . . 3 2 . 5 4 . 4 . . 1 . . . 1 . . . 1 . . . . Projectile 63 | . . . . . . . . . . . . . . . 2 . . 1 . 4 1 1 8 5 2 3 4 32 AOE 445 | . . 3 . . . 79 12 . . 9 3 38 13 . 8 35 25 . . . . 10 . 18 18 . 83 91 Terrain Rammed . | . . . . . . . . . . . . . . . . . . . . . . . . . . . . . Walls Destroyed . | . . . . . . . . . . . . . . . . . . . . . . . . . . . . . Machines Disabled . | . . . . . . . . . . . . . . . . . . . . . . . . . . . . . Actions | -11 -10 -10 -10 -9 -8 -8 -8 -8 -7 -7 -7 -7 -7 -7 -6 -6 -6 -6 -6 -6 -5 -5 -4 -4 -3 -3 -2 -1 --------- Run | Yrd Mat Min Exi Min Mat Gar Mat Gar Fac Gar Fac Low Low Zio Pro Fac Ext Cet Arc Hub Fac Gar Fac Gar Res Gar Res Acc Total 24346 | 84 354 493 292 223 1169 1090 1931 1090 479 1079 1630 1488 838 184 1172 1331 1303 286 495 493 449 1181 438 1034 470 967 1052 1251 Wait 5033 | 2 22 39 . 2 621 314 639 161 301 115 248 99 9 28 124 170 208 52 286 86 244 75 55 228 65 153 484 203 Move 17122 | 71 300 428 281 215 508 653 1125 699 171 823 1269 1324 819 152 1026 1073 933 182 199 356 198 981 331 740 324 642 472 827 Hop . | . . . . . . . . . . . . . . . . . . . . . . . . . . . . . Pick Up 162 | 4 11 6 3 1 8 4 17 9 1 7 21 3 . 1 2 10 1 6 1 . . 6 1 1 15 5 7 11 Fast Attach 101 | 6 2 . . 1 3 2 6 3 2 1 5 3 . . 2 5 1 4 2 8 4 5 2 2 5 1 6 20 Attach 41 | . 1 . . . 2 . 2 2 1 2 5 . . . . 3 1 1 . . . . . . 3 . 6 12 Detach 27 | . 2 . . . . . 2 . 1 1 1 1 . . . 1 . 2 1 2 . . . 1 3 . 3 6 Swap 331 | . 3 2 4 1 3 23 24 25 1 22 22 12 4 2 3 19 18 8 2 10 . 16 19 14 14 7 13 40 Drop 193 | . 3 5 4 3 7 9 25 11 1 6 11 5 . 1 5 15 . 10 2 7 2 13 1 3 13 8 8 15 Fire 773 | 1 8 9 . . 14 41 78 45 . 59 31 19 1 . 10 31 65 16 . 14 1 53 29 40 24 16 53 115 Melee 80 | . . . . . . 3 4 12 . 10 15 7 5 . . 2 . 5 2 3 . 7 . 5 . . . . Ram . | . . . . . . . . . . . . . . . . . . . . . . . . . . . . . Kick 18 | . . . . . . . 9 . . 1 . . . . . 2 2 . . . . 1 . . 3 . . . Crush 6 | . 2 4 . . . . . . . . . . . . . . . . . . . . . . . . . . Escape Stasis 52 | . . . . . . 9 . 20 . 15 . . . . . . 2 . . . . 5 . . . . . 1 Rewire 371 | . . . . . . 32 . 95 . 17 2 15 . . . . 56 . . . . 17 . . 1 135 . 1 Trap 5 | . . . . . 3 . . . . . . . . . . . . . . . . 2 . . . . . . Miscellaneous 31 | . . . . . . . . 8 . . . . . . . . 16 . . 7 . . . . . . . . Route ------- -11/Scrapyard -10/Materials (discovered 4 exits: [*Mat x3] / [*Min]) -10/Mines (discovered 4 exits: [*Mat x2] / *Exi / [*Sub]) -10/Exiles -9/Mines -8/Materials (discovered 2 exits: Fac / Gar) -8/Garrison (discovered 4 exits: *Fac x3 / *Mat) -8/Materials (discovered 2 exits: *Fac / Gar) -8/Garrison (discovered 3 exits: *Fac x3) -7/Factory -7/Garrison (discovered 3 exits: *Fac x3) -7/Factory (discovered 3 exits: *Fac / *Low x2) -7/Lower Caves -7/Lower Caves (discovered 2 exits: *Fac / *Zio) -7/Zion -6/Proximity Caves -6/Factory (discovered 8 exits: *Fac x4 / *Low x2 / *Ext x2) -6/Extension (discovered 3 exits: *Fac x2 / *Cet) -6/Cetus (discovered 2 exits: *Fac / [*Arc]) -6/Archives (discovered 2 exits: [*Hub x2]) -6/Hub_04(d) -5/Factory -5/Garrison (discovered 3 exits: *Fac x3) -4/Factory (discovered 2 exits: *Res / Gar) -4/Garrison (discovered 3 exits: *Res x3) -3/Research -3/Garrison (discovered 3 exits: *Res x3) -2/Research -1/Access To Epsilon Eridani History --------- Turn | Location | Event 42 | -11/Scrapyard | Discovered new exit (range 16) 131 | -11/Scrapyard | Entered Materials 132 | -10/Materials | Met a group of wandering Federalists 209 | -10/Materials | Discovered new exit (range 7) 287 | -10/Materials | Discovered new exit (range 16) 303 | -10/Materials | Build established: Mutant 431 | -10/Materials | Discovered new exit (range 15) 557 | -10/Materials | Discovered new exit (range 16) 681 | -10/Materials | Entered Mines 689 | -10/Mines | Assisted by bots powering up and referring to "LRC-V3" 710 | -10/Mines | Discovered new exit (range 7) 764 | -10/Mines | Met a Derelict bent on vengeance 794 | -10/Mines | Lost 3 allies 1062 | -10/Mines | Deemed a non-threat by the Exiles lab entrance 1062 | -10/Mines | Discovered new exit (range 5) 1081 | -10/Mines | Discovered new exit (range 7) 1153 | -10/Mines | Learned location of 1 exit from Materials 1158 | -10/Mines | Discovered new exit (range 5) 1308 | -10/Mines | Found a hidden stash of uninstalled traps 1448 | -10/Mines | Entered Exiles 1491 | -10/Exiles | Met 8R-AWN 1517 | -10/Exiles | Met EX-HEX 1587 | -10/Exiles | Met EX-DEC 1613 | -10/Exiles | Learned location of Zion (-7) 1648 | -10/Exiles | Met EX-BIN 1667 | -10/Exiles | Aligned with FarCom system 1669 | -10/Exiles | Given EX-Vault access code 1709 | -10/Exiles | Opened EX-Vault 1723 | -10/Exiles | Found Firepult 1757 | -10/Exiles | Warned to stay clear of 0b10 Research branches 1896 | -10/Exiles | Discovered new exit (range 10) 1909 | -10/Exiles | Left Exiles lab with Firepult 1909 | -10/Exiles | Entered Mines 1948 | -9/Mines | Received a Rocket Launcher from a helpful Derelict 1957 | -9/Mines | Discovered new exit (range 8) 2068 | -9/Mines | Found a damaged Exp. Sensor Array with a note attached 2200 | -9/Mines | Assembled infested the area 2205 | -9/Mines | Assisted by a Guerilla fighting off Assembled 2330 | -9/Mines | Entered Materials 2330 | -8/Materials | Evolved 4 slots: Propulsion x1, Utility x2, Weapon x1 2331 | -8/Materials | Identified exit to Factory 2620 | -8/Materials | Build established: Skirmisher 2665 | -8/Materials | Garrison activated, responded to threat 2932 | -8/Materials | Build established: Scavenger-Skirmisher 3554 | -8/Materials | Identified exit to Garrison 3556 | -8/Materials | Entered Garrison 3556 | -8/Garrison | Accompanied by 1 ally 3580 | -8/Garrison | Triggered checkpoint 3652 | -8/Garrison | Garrison Relay disabled 3663 | -8/Garrison | Installed Relay Interface Framework 3720 | -8/Garrison | Triggered checkpoint 3850 | -8/Garrison | Triggered checkpoint 3881 | -8/Garrison | Triggered checkpoint 3970 | -8/Garrison | Triggered checkpoint 3995 | -8/Garrison | Discovered exit to Factory (range 23) 3995 | -8/Garrison | Discovered exit to Factory (range 32) 3995 | -8/Garrison | Discovered exit to Factory (range 60) 3995 | -8/Garrison | Discovered new exit (range 32) 4012 | -8/Garrison | Garrison Relay disabled 4050 | -8/Garrison | Triggered checkpoint 4123 | -8/Garrison | Triggered checkpoint 4762 | -8/Garrison | Entered Materials 4762 | -8/Materials | Accompanied by 3 allies 5503 | -8/Materials | Discovered exit to Factory (range 15) 6277 | -8/Materials | Garrison activated, responded to threat 6762 | -8/Materials | First assault squad dispatched 7118 | -8/Materials | Identified exit to Garrison 7205 | -8/Materials | Entered Garrison 7205 | -8/Garrison | Accompanied by 4 allies 7350 | -8/Garrison | Triggered checkpoint 7586 | -8/Garrison | Garrison Relay disabled 7791 | -8/Garrison | Triggered checkpoint 7847 | -8/Garrison | Triggered checkpoint 7851 | -8/Garrison | Lost 3 allies 7861 | -8/Garrison | Triggered checkpoint 7975 | -8/Garrison | Triggered checkpoint 8213 | -8/Garrison | Discovered exit to Factory (range 11) 8332 | -8/Garrison | Discovered exit to Factory (range 10) 8346 | -8/Garrison | Discovered exit to Factory (range 7) 8346 | -8/Garrison | Discovered exit to Factory (range 44) 8346 | -8/Garrison | Discovered exit to Factory (range 44) 8367 | -8/Garrison | Expanded RIF knowledge: Coupler Efficiency 8547 | -8/Garrison | Entered Factory 8547 | -7/Factory | Accompanied by 2 allies 8547 | -7/Factory | Evolved 2 slots: Propulsion x1, Utility x1 8592 | -7/Factory | Identified exit to Garrison 8897 | -7/Factory | Build established: Scavenger-Tank 9036 | -7/Factory | Entered Garrison 9036 | -7/Garrison | Accompanied by 3 allies 9132 | -7/Garrison | Lost 3 allies 9144 | -7/Garrison | Garrison Relay disabled 9271 | -7/Garrison | Expanded RIF knowledge: Alert ID Control 9314 | -7/Garrison | Triggered checkpoint 9371 | -7/Garrison | Triggered checkpoint 9522 | -7/Garrison | Garrison Relay disabled 9545 | -7/Garrison | Discovered new exit (range 8) 9634 | -7/Garrison | Triggered checkpoint 9725 | -7/Garrison | Discovered new exit (range 10) 9758 | -7/Garrison | Triggered checkpoint 9937 | -7/Garrison | Discovered new exit (range 10) 9950 | -7/Garrison | Triggered checkpoint 9967 | -7/Garrison | Build established: Scavenger-Skirmisher 10287 | -7/Garrison | Entered Factory 10287 | -7/Factory | Accompanied by 3 allies 10817 | -7/Factory | Discovered new exit (range 15) 10958 | -7/Factory | Identified exit to Factory 11159 | -7/Factory | Repaired Carbon-fiber Leg+ 11198 | -7/Factory | Repaired Carbon-fiber Leg+ 11225 | -7/Factory | Repaired Lrg. Storage Unit 11282 | -7/Factory | Repaired Beam Rifle+ 11795 | -7/Factory | Central database locked down 11899 | -7/Factory | Discovered new exit (range 6) 11912 | -7/Factory | Discovered new exit (range 5) 12110 | -7/Factory | Entered Lower Caves 12110 | -7/Lower Caves | Accompanied by 3 allies 12162 | -7/Lower Caves | Entered an active Warlord outpost 12169 | -7/Lower Caves | A Commander dispatched an escort 12402 | -7/Lower Caves | Attracted the attention of an 0b10 checkpoint 12427 | -7/Lower Caves | Build established: Scavenger-Gunner 12808 | -7/Lower Caves | Encountered a Warlord checkpoint 13048 | -7/Lower Caves | Attracted the attention of an 0b10 outpost 13114 | -7/Lower Caves | Learned Factory terminal intel 13136 | -7/Lower Caves | Discovered new exit (range 8) 13460 | -7/Lower Caves | Destroyed QU-YH0(g) 13741 | -7/Lower Caves | Build established: Scavenger-Tank 13795 | -7/Lower Caves | Entered another Lower Caves area 13795 | -7/Lower Caves | Accompanied by 5 allies 13796 | -7/Lower Caves | Commander's escort returned to base 13811 | -7/Lower Caves | Identified exit to Zion 13902 | -7/Lower Caves | Encountered a Warlord checkpoint 13937 | -7/Lower Caves | Discovered exit to Factory (range 5) 14737 | -7/Lower Caves | Entered Zion 14737 | -7/Zion | Accompanied by 4 allies 14760 | -7/Zion | Given the Hacking Drone Bay 14760 | -7/Zion | Found Prototype Device 14761 | -7/Zion | Identified Hacking Drone Bay 14892 | -7/Zion | Discovered new exit (range 15) 14939 | -7/Zion | Entered Proximity Caves 14939 | -6/Proximity Caves | Accompanied by 4 allies 15062 | -6/Proximity Caves | Received a Behemoth hack from an annoying Tinkerer 15172 | -6/Proximity Caves | Attracted the attention of an 0b10 checkpoint 15788 | -6/Proximity Caves | Discovered exit to Factory (range 9) 16244 | -6/Proximity Caves | Entered Factory 16244 | -6/Factory | Accompanied by 3 allies 16244 | -6/Factory | Evolved 2 slots: Power x1, Propulsion x1 16245 | -6/Factory | Identified exit to Extension 16246 | -6/Factory | Loaded intel: 28 terminal locations 16681 | -6/Factory | Repaired Flexi-carbon Leg+ 16740 | -6/Factory | Discovered new exit (range 13) 16866 | -6/Factory | P-60 Hacker assimilated allied Guardian 4b 17062 | -6/Factory | Discovered new exit (range 16) 17231 | -6/Factory | Discovered new exit (range 6) 17270 | -6/Factory | Identified exit to Lower Caves 17348 | -6/Factory | Identified exit to Factory 17410 | -6/Factory | Fabricated Flexi-carbon Leg (x2) 17699 | -6/Factory | Fabricated P-60 Hacker? 17729 | -6/Factory | Entered Extension 17729 | -6/Extension | Accompanied by 1 ally 17869 | -6/Extension | Build established: Scientist-Tank 18108 | -6/Extension | Identified exit to Cetus 18182 | -6/Extension | Rescued a captive Derelict 18183 | -6/Extension | Rescued a captive Derelict 18206 | -6/Extension | Rescued A7 18305 | -6/Extension | Rescued a captive Derelict 18320 | -6/Extension | Rescued a captive Derelict 18435 | -6/Extension | Rescued a captive Derelict 18566 | -6/Extension | Spotted B-75 Beast 18577 | -6/Extension | Destroyed B-75 Beast 18593 | -6/Extension | Spotted B-75 Beast 18608 | -6/Extension | Allies destroyed B-75 Beast 18651 | -6/Extension | Build established: Commander-Tank 18779 | -6/Extension | First assault squad dispatched 19029 | -6/Extension | Lost 3 allies 19249 | -6/Extension | Entered Cetus 19249 | -6/Cetus | Accompanied by 17 allies (A7) 19254 | -6/Cetus | Acquired a Cetus Manufacturing Module code from A7 19264 | -6/Cetus | Spotted Cetus Guard 19264 | -6/Cetus | Spotted Cetus Guard 19266 | -6/Cetus | Spotted Cetus Guard 19267 | -6/Cetus | Spotted Cetus Guard 19277 | -6/Cetus | Destroyed Cetus Guard 19278 | -6/Cetus | Allies destroyed Cetus Guard 19278 | -6/Cetus | Allies destroyed Cetus Guard 19280 | -6/Cetus | Allies destroyed Cetus Guard 19357 | -6/Cetus | Started Cetus Manufacturing Module 19376 | -6/Cetus | Escorted A7 to Cetus Mainframe 19382 | -6/Cetus | Manufactured an Enhanced Grunt 19395 | -6/Cetus | Discovered new exit (range 15) 19407 | -6/Cetus | Manufactured an Enhanced Grunt 19419 | -6/Cetus | Spotted Cetus Guard 19420 | -6/Cetus | Spotted Cetus Guard 19425 | -6/Cetus | Spotted Cetus Guard 19425 | -6/Cetus | Spotted Cetus Guard 19427 | -6/Cetus | Destroyed Cetus Guard 19428 | -6/Cetus | Allies destroyed Cetus Guard 19432 | -6/Cetus | Manufactured an Enhanced Grunt 19444 | -6/Cetus | Destroyed Cetus Guard 19450 | -6/Cetus | Allies destroyed Cetus Guard 19457 | -6/Cetus | Manufactured an Enhanced Grunt 19471 | -6/Cetus | Murdered A7 19472 | -6/Cetus | Extracted ID and sensor layout for unrecognized location from A7's data core 19476 | -6/Cetus | Lost 4 allies 19476 | -6/Cetus | Found Med. Regenerative Plating 19479 | -6/Cetus | Discovered exit to Factory (range 16) 19482 | -6/Cetus | Manufactured an Enhanced Grunt 19492 | -6/Cetus | Met Revision 17 19591 | -6/Cetus | Entered Archives 19591 | -6/Archives | Accompanied by 16 allies 19685 | -6/Archives | Discovered new exit (range 16) 21223 | -6/Archives | Discovered new exit (range 16) 21752 | -6/Archives | Entered Hub_04(d) 21752 | -6/Hub_04(d) | Accompanied by 14 allies 21858 | -6/Hub_04(d) | Found Prototype Processor 21858 | -6/Hub_04(d) | Identified Exp. Targeting Computer 21867 | -6/Hub_04(d) | Found Exp. Targeting Computer 21888 | -6/Hub_04(d) | Lost 4 allies 22023 | -6/Hub_04(d) | Network Hub disabled 22124 | -6/Hub_04(d) | Build established: Scavenger-Gunner 22193 | -6/Hub_04(d) | P-60 Hacker assimilated allied T3-NMA(g) 22265 | -6/Hub_04(d) | Discovered exit to Factory (range 15) 22301 | -6/Hub_04(d) | Network Hub disabled 22320 | -6/Hub_04(d) | Spotted Lightning 22320 | -6/Hub_04(d) | Spotted Lightning 22320 | -6/Hub_04(d) | Spotted Lightning 22320 | -6/Hub_04(d) | Entered Factory 22320 | -5/Factory | Accompanied by 1 ally 22320 | -5/Factory | Evolved 2 slots: Utility x2 22341 | -5/Factory | Identified exit to Garrison 22783 | -5/Factory | Entered Garrison 22783 | -5/Garrison | Accompanied by 1 ally 22803 | -5/Garrison | Triggered checkpoint 22817 | -5/Garrison | Garrison Relay disabled 22875 | -5/Garrison | Triggered checkpoint 22877 | -5/Garrison | Triggered checkpoint 22904 | -5/Garrison | Triggered checkpoint 22920 | -5/Garrison | Triggered checkpoint 22979 | -5/Garrison | Found Exp. Thermal Shield 23011 | -5/Garrison | Triggered checkpoint 23092 | -5/Garrison | Discovered new exit (range 14) 23110 | -5/Garrison | Expanded RIF knowledge: Watcher Feeds 23219 | -5/Garrison | Discovered new exit (range 10) 23222 | -5/Garrison | Spotted B-90 Cyclops 23225 | -5/Garrison | Rewired B-90 Cyclops 23239 | -5/Garrison | Rewired B-90 Cyclops 23464 | -5/Garrison | Discovered new exit (range 10) 23475 | -5/Garrison | Triggered checkpoint 23553 | -5/Garrison | Garrison Relay disabled 23880 | -5/Garrison | Rewired Executioner 23882 | -5/Garrison | Rewired Executioner 24087 | -5/Garrison | Entered Factory 24087 | -4/Factory | Accompanied by 4 allies 24087 | -4/Factory | Evolved 2 slots: Propulsion x1, Utility x1 24142 | -4/Factory | Assembled infested ambush trap array 24198 | -4/Factory | Discovered new exit (range 12) 24337 | -4/Factory | First assault squad dispatched 24422 | -4/Factory | Lost 3 allies 24448 | -4/Factory | Spotted B-86 Titan 24600 | -4/Factory | Identified exit to Garrison 24617 | -4/Factory | Entered Garrison 24617 | -4/Garrison | Accompanied by 4 allies 24657 | -4/Garrison | Triggered checkpoint 24747 | -4/Garrison | Expanded RIF knowledge: Program Shield 24774 | -4/Garrison | Spotted B-75 Beast 24775 | -4/Garrison | Befriended a Behemoth using the annoying Tinkerer's hack 24798 | -4/Garrison | Triggered checkpoint 24860 | -4/Garrison | Lost 4 allies 24913 | -4/Garrison | Spotted B-86 Titan 24926 | -4/Garrison | Befriended a Behemoth using the annoying Tinkerer's hack 24960 | -4/Garrison | Spotted B-75 Beast 24972 | -4/Garrison | Rewired B-90 Cyclops 24974 | -4/Garrison | Allies destroyed B-75 Beast 25196 | -4/Garrison | Discovered new exit (range 12) 25221 | -4/Garrison | Found embedded Infiltrators 25323 | -4/Garrison | Triggered checkpoint 25362 | -4/Garrison | Garrison Relay disabled 25413 | -4/Garrison | Triggered checkpoint 25482 | -4/Garrison | Discovered new exit (range 10) 25513 | -4/Garrison | Triggered checkpoint 25679 | -4/Garrison | Discovered new exit (range 12) 25824 | -4/Garrison | Entered Research 25824 | -3/Research | Evolved 2 slots: Utility x2 26024 | -3/Research | Revision forces began assault on 0b10 26073 | -3/Research | Met up with Revision 17++ 26156 | -3/Research | Repaired Adv. KE Penetrator 26220 | -3/Research | Central database locked down 26262 | -3/Research | Found Adv. Powered Armor 26264 | -3/Research | Found Adv. Powered Armor 26348 | -3/Research | Identified exit to Garrison 26357 | -3/Research | Entered Garrison 26357 | -3/Garrison | Discovered recently destroyed garrison 26357 | -3/Garrison | Accompanied by 1 ally 26395 | -3/Garrison | Identified exit to Research 26576 | -3/Garrison | Expanded RIF knowledge: Code Merge 26615 | -3/Garrison | Garrison Relay disabled 26720 | -3/Garrison | Found Relay Coupler [Proto] 26723 | -3/Garrison | Found Relay Coupler [Proto] 26726 | -3/Garrison | Found Relay Coupler [Proto] 26804 | -3/Garrison | Rewired Executioner 26831 | -3/Garrison | Rewired Executioner 26963 | -3/Garrison | Found embedded Infiltrators 26979 | -3/Garrison | Garrison Relay disabled 27069 | -3/Garrison | Build established: Commander-Gunner 27195 | -3/Garrison | Garrison Relay disabled 27395 | -3/Garrison | Entered Research 27395 | -2/Research | Accompanied by 15 allies 27395 | -2/Research | Evolved 2 slots: Power x1, Propulsion x1 27452 | -2/Research | Lost 3 allies 27650 | -2/Research | Unchained authorized (6S-H0T) 27690 | -2/Research | Exiles provided nearest exit location to -1/Access 27721 | -2/Research | Build established: Bothacker-Gunner 27904 | -2/Research | Found Exp. Core Analyzer 27925 | -2/Research | Lost 6 allies 28255 | -2/Research | Lost 3 allies 28395 | -2/Research | First assault squad dispatched 28564 | -2/Research | Destroyed 13 combat bots 28586 | -2/Research | Entered Access 28586 | -1/Access | Accompanied by 1 ally 28586 | -1/Access | Evolved 2 slots: Utility x1, Weapon x1 28836 | -1/Access | First assault squad dispatched 28849 | -1/Access | Spotted B-99 Colossus 28871 | -1/Access | Destroyed B-99 Colossus 28944 | -1/Access | Build established: Botlord-Gunner 29283 | -1/Access | Build established: Botlord-Tank 29853 | -1/Access | Lost 4 allies 29905 | -1/Access | Lost 4 parts (1p2u1w) 29977 | -1/Access | Lost 5 parts (2p2u1w) 29997 | -1/Access | Discovered new exit (range 6) 30088 | *** | Escaped! Last Messages --------------- 30052_ Acquired 31 matter. 30059_ U-05 Engineer builds a Wall. 30065_ U-05 Engineer lays Concrete. 30067_ Jacked U-05 Engineer... >>formatsys_low Rerouting network defenses. Erasing system data. Installing primary routines, ETC: 6. 30068_ Jacked U-05 Engineer... >>formatsys_low Rerouting network defenses. Erasing system data. Installing primary routines, ETC: 6. 30071_ U-05 Engineer builds a Wall. 30073_ Engineer 10a reactivates. 30074_ Engineer 10b reactivates. 30075_ U-05 Engineer lays Concrete. 30076_ ALERT: Potential suspicious activity detected, Programmers report to Access Zone 9B. 30076_ U-05 Engineer lays Concrete. Map ----- +----------------------------------------------------+ | ?????????????????????????????????????????????????? | | ?????????????????????????????????????????????????? | | ?????????????????????????????????????????????????? | | ?????????????????????????????????????????????????? | | ?????????????????????????????????????????????????? | | ?????????????????????????????????????????????????? | | ?????????????????????????????????????????????????? | | ?????????????????????????????????????????????????? | | ?????????????????????????????????????????????????? | | ?????????????????????????????????????????????????? | | ?????????????????????????????????????????????????? | | ?????????????????????????????????????????????????? | | ?????????????????????????????????????????????????? | | ?????????????????????????????????????????????????? | | ?????????????????????BB????BB????????????????????? | | ?????????????????????BB????BB????????????????????? | | ?????????????????????????????????????????????????? | | ?????????????????????????????????????????????????? | | ?????????????????????????????????????????????????? | | ?????????????????????????????????????????????????? | | ???????????????????#""""""""""#??????????????????? | | ???????????????????# #??????????????????? | | ?##????????????????# #??????????????????? | | ? ????????????????# #????????????????##? | | ? ????????????????# "" #?????????######? #? | | ? #???????????????# "@ #??????### # ?? | | ? +???????????????# #?????## ## #?? | | ? #???????????????# #?????# ##? | | ? #???????????????# u #?????# #? | | ? #??????????????## u ##????# #?? | | + #??????????????# #????# #?? | | # #??????????????##"" ##????# #?? | | # #???????????????#"" #?????# #?? | | # #???????????????#"" #?????# #?? | | # #???????????????#T #????##! #?? | | # #???????????????#"" #????#" ###?? | | # #???????????????#"" ###??###"## ###" #?? | | #??????##########"" #########%==[#"##### | | +??????# ! = %#[ ! | | # #??????# % [=% =+%% | | # #??????#= #####"#################### [ # " | | # #??????# #???###????????#????????###=%## " | | # #??????# #?????????????????????????# !## | | # ##?????# #?????????????????????????# ## " | | ####### #?????????????????????????# ## | | #?????????????????????????# ## | | +?????????????????????????# ## !! | | ####### #?????????????????????##### ## !! [ | | # ##?????# #?????????????????????# ####### | | # #??????# #?????????????????????# | +----------------------------------------------------+ Best States ------------- Heat Dissipation 90 Energy Generation 65 Energy Capacity 840 Matter Stores 300 Matter Capacity 300 Sight Range 16 Terrain Scan Density 10 Jamming Range 16 Power Amplification 20 Armor Coverage 625 Resistance: KI 20 Resistance: TH 30 Propulsion Shielding 33 Utility Shielding 66 Weapon Cycling 25 Evasion (%) 82 Targeting Accuracy 12 Core Analysis 8 Recoil Reduction 2 Offensive Hacking 10 Relay Coupler Types 3 Relay Coupler Value 73 Item Schematics ----------------- Huge Storage Unit | -10/Materials | Hacked Flexi-carbon Leg | -8/Materials | Scanalyzed Lyr. Medium Armor Plating | -7/Factory | Scanalyzed Adv. KE Penetrator | -3/Research | Scanalyzed Adv. Shield Generator | -3/Research | Scanalyzed Robot Schematics ------------------ P-60 Hacker | -7/Factory | Hacked Fabricated ------------ Flexi-carbon Leg | x2 | -6/Factory P-60 Hacker | x2 | -6/Factory Repaired ---------- Carbon-fiber Leg | 64% | -7/Factory Carbon-fiber Leg | 67% | -7/Factory Lrg. Storage Unit | 58% | -7/Factory Beam Rifle | 69% | -7/Factory Flexi-carbon Leg | 57% | -6/Factory Adv. KE Penetrator | 11% | -3/Research Studied --------- Imp. Aluminum Leg | -8/Materials | Hacked Beam Rifle | -8/Materials | Hacked Carbon-fiber Leg | -8/Materials | Hacked Particle Gun | -8/Materials | Hacked Gauss Rifle | -7/Factory | Hacked Imp. Titanium Leg | -7/Factory | Hacked Flexi-carbon Leg | -6/Factory | Hacked Coil Gun | -6/Factory | Hacked Myomer Leg | -3/Research | Hacked Hvy. Machine Gun | -3/Research | Hacked Alien Tech Used ----------------- None Achievements -------------- None Challenges ------------ None Game ------ Seed JunkEtherialProjector Manual? 0 Play Time 03:07:11 Cumulative 2103.9 hours Start 2026.01.19 @ 18:11:27 End 2026.01.19 @ 21:21:31 Sessions 1 Manual Loads 0 Difficulty Rogue Special Mode None Game No. 1346 Rogue 1342 Adventurer 4 Explorer 0 Win Type 0 Total 292 Types 220/13/22/11/3/1/4/10/5/3 Lore% 98 Gallery% 96 Achievement% 88 Wizard Run 0 Options --------- Layout 2 ASCII 0 Keyboard 1 Movement Vi Keybinds 0 Fullscreen 0 Font 24/Terminus Map View 59x48 Zoom Use 0% Tactical HUD 1 Map Filters NONE Filters NONE Steam 1 RUN: 55675536-a976-41d3-8c59-4ac1e14442cd